bitfinex/quotes_ETHUSD_20241216
["timestamp","ask_amount","ask_price","bid_price","bid_amount"]
[1734344440500,2.54297,3932.4,3932.1,0.7972]
[1734344440704,2.54297,3932.4,3931.8,0.8027]
[1734344441999,2.54285,3932.6,3931.8,0.8027]
[1734344442328,3.7518,3933.1,3931.9,0.28979156]
[1734344442629,0.333501,3933.6,3931.9,0.28979156]
[1734344442630,2.54233,3933.4,3932.1,0.7648]
[1734344442776,0.7728,3934.0,3932.3,0.7648]
[1734344442777,2.54219,3933.7,3932.3,0.7648]
[1734344442981,2.54219,3933.7,3932.2,0.35007844]
[1734344442982,2.54219,3933.7,3932.6,0.7648]
[1734344443438,2.54228,3933.5,3932.7,0.03511042]
[1734344444476,2.54178,3934.3,3932.7,0.06053626]
[1734344444782,2.54197,3934.0,3932.8,1.02767]
[1734344444977,2.54197,3934.0,3932.9,1.02766]
[1734344445205,2.54197,3934.0,3932.9,1.06247088]
[1734344445419,2.54197,3934.0,3933.0,0.02542247]
[1734344445719,0.8155,3934.5,3933.2,0.7826]
[1734344445920,2.54182,3934.2,3933.2,0.7826]
[1734344446094,2.54182,3934.2,3933.3,0.0347617]
[1734344446600,2.54201,3933.9,3933.3,0.0347617]
[1734344447286,0.8155,3934.5,3933.3,0.0347617]
[1734344447510,2.54187,3934.1,3933.3,0.0347617]
[1734344448102,2.54202,3933.9,3933.3,0.0347617]
[1734344448399,1.04717537,3935.4,3933.4,0.7771]
[1734344448602,2.54128,3935.1,3933.9,0.25419]
[1734344448816,2.54128,3935.1,3934.0,0.7771]
[1734344449128,2.54128,3935.1,3934.0,0.81139378]
[1734344449431,2.54136,3934.9,3934.0,0.81139378]
[1734344449579,0.8092,3935.7,3934.0,0.81139378]
[1734344449580,2.5409,3935.6,3934.0,0.81139378]
[1734344449785,2.5417,3934.4,3934.0,0.81139378]
[1734344450032,2.54181,3934.2,3934.0,0.7771]
[1734344450731,0.8092,3934.8,3934.0,0.7771]
[1734344450732,2.54187,3934.1,3934.0,0.7771]
[1734344451740,2.54187,3934.1,3933.0,0.782]
[1734344452039,0.8092,3934.8,3934.0,0.03323122]
[1734344452255,2.54171,3934.4,3933.8,0.782]
[1734344452388,2.5414,3934.9,3933.8,0.782]
[1734344452389,2.5416,3934.6,3933.8,0.782]
[1734344452740,2.5414,3934.9,3933.8,0.782]
[1734344452741,2.54162,3934.5,3933.8,0.782]
[1734344452890,2.54162,3934.5,3933.9,0.03325259]
[1734344453195,2.54162,3934.5,3933.8,0.782]
[1734344453392,0.7664,3935.2,3933.8,0.782]
[1734344453643,2.54163,3934.5,3933.9,0.03325259]
[1734344453934,2.54163,3934.5,3933.8,0.782]
[1734344454147,2.54129,3935.0,3934.0,0.03321112]
[1734344454322,2.54148,3934.8,3933.8,0.782]
[1734344454680,2.54138,3934.9,3934.2,0.8165]
[1734344455093,2.54138,3934.9,3934.3,0.03309086]
[1734344455289,2.54138,3934.9,3934.2,0.8165]
[1734344455493,2.54112,3935.3,3934.2,0.8165]
[1734344455494,2.54142,3934.8,3934.4,0.03306949]
[1734344455733,2.54142,3934.8,3934.2,0.8165]
[1734344455944,2.54142,3934.8,3934.5,0.03304813]
[1734344456125,2.54142,3934.8,3934.2,0.8165]
[1734344456436,2.54142,3934.8,3934.6,0.03302677]
[1734344456619,2.54142,3934.8,3934.2,0.8165]
[1734344457156,0.85103038,3935.5,3934.4,0.7812]
[1734344457157,2.54097,3935.5,3934.4,0.7812]
[1734344457347,2.54097,3935.5,3934.3,0.05858671]
[1734344457348,2.54085,3935.7,3934.6,0.7812]
[1734344457513,0.329925,3935.7,3934.6,0.7812]
[1734344457713,2.54105,3935.4,3934.7,0.03297339]
[1734344458411,2.54091,3935.6,3934.7,0.03297339]
[1734344458597,2.54091,3935.6,3934.7,0.0254127]
[1734344458898,2.54091,3935.6,3934.6,0.7812]
[1734344459096,3.0,3936.0,3934.8,0.03295203]
[1734344459299,3.0,3935.8,3934.6,0.7812]
[1734344459494,2.54084,3935.7,3934.9,0.03293067]
[1734344459840,2.54071,3936.0,3935.0,0.7754]
[1734344460194,2.54072,3935.9,3935.1,0.0321953]
[1734344460395,2.54072,3935.9,3935.0,0.7754]
[1734344460933,0.7573,3936.3,3935.0,0.7754]
[1734344460934,2.54078,3935.8,3935.0,0.7754]
[1734344461547,2.54049,3936.3,3935.0,0.7754]
[1734344461694,2.54064,3936.1,3935.0,0.7754]
[1734344461896,0.49983618,3936.4,3935.0,0.7754]
[1734344462098,0.12792362,3936.3,3935.0,0.7754]
[1734344462329,2.54065,3936.0,3935.0,0.7754]
[1734344462730,2.54086,3935.7,3935.0,0.7754]
[1734344463037,2.54086,3935.7,3935.1,0.03164215]
[1734344463929,2.54091,3935.6,3935.1,0.03164215]
[1734344464171,2.54058,3936.1,3935.1,0.03164215]
[1734344464382,2.54077,3935.9,3935.1,0.03164215]
[1734344464701,2.54078,3935.8,3935.2,0.8127]
[1734344464842,2.54078,3935.8,3935.2,0.84454621]
[1734344466270,2.54087,3935.7,3935.2,0.84454621]
[1734344466473,2.54077,3935.9,3935.2,0.84454621]
[1734344466645,2.54077,3935.9,3935.2,0.8127]
[1734344466835,2.54078,3935.8,3935.3,0.03174793]
[1734344467036,2.66843362,3936.3,3935.2,0.8127]
[1734344467037,2.54065,3936.0,3935.2,0.8127]
[1734344467373,2.66843362,3936.3,3935.3,0.03174499]
[1734344467682,2.66843362,3936.3,3935.2,0.8127]
[1734344467986,2.54073,3935.9,3935.4,0.03166347]
[1734344468188,2.54078,3935.8,3935.3,0.03170533]
[1734344468331,2.54078,3935.8,3935.2,0.8127]
[1734344468532,2.54078,3935.8,3935.4,0.03168398]
[1734344468783,2.54078,3935.8,3935.2,0.8127]
[1734344468784,0.26684336,3936.2,3935.2,0.8127]
[1734344469090,0.12792362,3936.3,3935.2,0.8127]
[1734344469091,2.5411,3935.3,3935.2,0.8127]
[1734344470672,0.8328,3935.9,3934.2,0.7577]
[1734344470673,2.54117,3935.2,3934.2,0.7577]
[1734344470880,2.54124,3935.1,3934.2,0.7577]
[1734344472186,2.54124,3935.1,3934.3,2.1741652]
[1734344472340,2.54124,3935.1,3934.2,0.7577]
[1734344472341,2.54136,3934.9,3934.2,0.7577]
[1734344472735,2.54148,3934.7,3934.2,0.7577]
[1734344473068,0.254124,3935.0,3934.2,0.7577]
[1734344473271,2.54148,3934.8,3934.2,0.7577]
[1734344473439,0.8031,3935.4,3934.2,0.7577]
[1734344473639,2.54157,3934.6,3934.2,0.7577]
[1734344474094,2.54067,3936.0,3934.3,2.1741652]
[1734344474095,2.54134,3935.0,3934.3,2.1741652]
[1734344474236,2.54134,3935.0,3934.4,0.8005]
[1734344474448,2.54144,3934.8,3934.4,0.8005]
[1734344475169,2.5413,3935.0,3934.4,0.8005]
[1734344475670,2.54084,3935.7,3934.4,0.8005]
[1734344475986,2.54116,3935.2,3934.4,0.8005]
[1734344476789,2.54097,3935.5,3934.4,0.8005]
[1734344476995,2.5411,3935.3,3933.6,0.8124]
[1734344477141,2.54166,3934.5,3933.6,0.8124]
[1734344478039,2.5411,3935.3,3933.6,0.8124]
[1734344478346,0.8142,3935.1,3933.6,0.8124]
[1734344478651,2.542,3933.9,3933.7,0.03128134]
[1734344479263,2.54207,3933.8,3933.7,0.03128134]
[1734344479685,2.54194,3934.0,3933.7,0.03128134]
[1734344480041,2.54201,3933.9,3933.7,0.03128134]
[1734344480338,2.54201,3933.9,3933.6,0.8124]
[1734344480557,2.54201,3933.9,3933.7,0.03153981]
[1734344480797,2.54213,3933.7,3933.6,0.8124]
[1734344481122,2.54213,3933.7,3933.6,0.03156118]
[1734344481260,2.54213,3933.7,3933.0,0.8005]
[1734344481587,0.8259,3934.6,3933.2,0.8005]
[1734344481892,0.8259,3934.6,3933.4,0.8005]
[1734344481893,2.5416,3934.6,3933.4,0.8005]
[1734344482102,2.54142,3934.8,3933.8,0.8005]
[1734344482247,2.54157,3934.6,3933.8,0.8005]
[1734344482594,2.54157,3934.6,3933.9,0.03157758]
[1734344482892,2.54157,3934.6,3933.8,0.8005]
[1734344483044,2.54157,3934.6,3933.9,0.34779587]
[1734344483244,2.54157,3934.6,3933.9,0.37965056]
[1734344483855,2.54123,3935.1,3933.9,0.03185469]
[1734344484077,2.54179,3934.3,3933.9,0.03185469]
[1734344484281,2.54123,3935.1,3933.8,0.8005]
[1734344484282,2.54162,3934.5,3933.8,0.8005]
[1734344484445,2.54133,3935.0,3933.9,0.0573857]
[1734344484771,2.54138,3934.9,3934.1,0.7746]
[1734344485144,2.54138,3934.9,3934.2,0.03190335]
[1734344486797,2.5411,3935.3,3934.2,0.03190335]
[1734344487301,2.5411,3935.3,3934.1,0.7746]
[1734344487645,0.7739,3935.6,3934.3,0.03197079]
[1734344487882,2.54174,3934.3,3934.1,0.7746]
[1734344488091,2.54181,3934.2,3934.1,0.7746]
[1734344489277,2.54175,3934.3,3934.1,0.7746]
[1734344490286,2.54161,3934.5,3934.1,0.7746]
[1734344490679,2.54169,3934.4,3934.1,0.7746]
[1734344490981,1.04717537,3935.1,3934.1,0.7746]
[1734344491176,1.04717537,3935.0,3934.1,0.7746]
[1734344491382,2.54181,3934.2,3933.4,0.7566]
[1734344491791,2.54181,3934.2,3933.5,0.03217586]
[1734344492094,2.54156,3934.6,3933.5,0.03217586]
[1734344492455,2.54185,3934.2,3933.5,0.41389558]
[1734344492622,2.54168,3934.4,3933.5,0.41389558]
[1734344492921,2.54175,3934.3,3933.5,0.41389558]
[1734344493119,2.54175,3934.3,3933.6,0.7537]
[1734344493323,2.54175,3934.3,3933.7,0.0321331]
[1734344493625,2.54187,3934.2,3933.7,0.0321331]
[1734344493812,2.54197,3934.0,3933.7,0.0321331]
[1734344494011,2.54176,3934.3,3933.7,0.0321331]
[1734344494211,2.54176,3934.3,3933.6,0.7537]
[1734344494212,2.54188,3934.1,3933.6,0.7537]
[1734344494525,2.54188,3934.1,3933.7,0.0321331]
[1734344494828,2.54194,3934.0,3933.6,0.7537]
[1734344495191,2.54194,3934.0,3933.7,0.0321331]
[1734344495618,2.54194,3934.0,3933.6,0.7537]
[1734344495995,2.54194,3934.0,3933.7,0.03215834]
[1734344496216,2.54207,3933.8,3933.7,0.03215834]
[1734344496416,2.54227,3933.5,3933.3,0.8199]
[1734344496653,2.54232,3933.4,3933.3,0.8199]
[1734344496800,2.54251,3933.2,3932.9,0.8199]
[1734344497335,2.54252,3933.1,3933.0,0.03041305]
[1734344497516,2.54252,3933.1,3932.9,0.8199]
[1734344498238,2.54252,3933.1,3932.3,0.8074]
[1734344498441,2.54254,3933.1,3932.3,0.8074]
[1734344498742,1.55042578,3934.0,3932.4,0.03054138]
[1734344499044,2.54239,3933.3,3932.3,0.8074]
[1734344499352,2.54239,3933.3,3932.4,0.03063391]
[1734344499527,2.54239,3933.3,3932.3,0.8074]
[1734344499727,2.54239,3933.3,3932.5,0.03061252]
[1734344499972,2.54239,3933.3,3932.3,0.8074]
[1734344500135,2.54239,3933.3,3932.6,0.03059113]
[1734344500442,2.54239,3933.3,3932.3,0.8074]
[1734344500605,2.54239,3933.3,3932.7,0.03056974]
[1734344500797,2.54239,3933.3,3932.4,0.29837939]
[1734344501039,2.54239,3933.3,3932.8,0.03054834]
[1734344501445,2.54239,3933.3,3932.4,0.29837939]
[1734344501609,2.54239,3933.3,3932.9,0.03052695]
[1734344501808,0.254239,3933.3,3932.3,0.8074]
[1734344502161,0.8313,3934.1,3932.7,0.8081]
[1734344502303,0.8313,3934.1,3932.8,0.03105138]
[1734344503147,2.54232,3933.5,3932.8,0.03105138]
[1734344503331,2.5421,3933.8,3932.8,0.03105138]
[1734344503641,3.37322,3934.1,3932.7,0.8081]
[1734344503866,0.18784754,3934.0,3932.7,0.8081]
[1734344504166,2.54214,3933.7,3932.8,0.03105138]
[1734344504955,0.18784754,3934.0,3932.8,0.03105138]
[1734344504956,2.5422,3933.6,3932.8,0.03105138]
[1734344507621,2.54175,3934.3,3933.0,2.17639391]
[1734344507866,2.54163,3934.5,3933.5,0.8257]
[1734344508463,2.54163,3934.5,3933.6,0.03113785]
[1734344508821,2.54163,3934.5,3933.5,0.8257]
[1734344509065,0.8266,3934.7,3933.5,0.8257]
[1734344509243,2.54169,3934.4,3933.5,0.8257]
[1734344509751,2.54169,3934.4,3933.6,0.03091712]
[1734344512290,2.54177,3934.3,3933.6,0.03091712]
[1734344513571,0.8266,3934.7,3933.6,0.03091712]
[1734344514245,2.54171,3934.4,3933.6,0.03091712]
[1734344514743,0.8266,3934.7,3933.6,0.03091712]
[1734344514937,1.40675579,3934.6,3933.6,0.03091712]
[1734344515142,2.54183,3934.2,3933.6,0.03091712]
[1734344515786,0.5363066,3934.6,3933.6,0.03091712]
[1734344515999,0.8064,3934.2,3933.1,0.7704]
[1734344516199,0.87052031,3934.1,3933.1,0.7704]
[1734344516345,2.81434957,3934.0,3933.1,0.7704]
[1734344516545,2.54227,3933.5,3933.1,0.7704]
[1734344517355,2.54219,3933.7,3933.1,0.7704]
[1734344518596,2.54233,3933.4,3933.1,0.7704]
[1734344518802,0.254233,3933.3,3932.7,0.7901]
[1734344519184,0.254233,3933.3,3932.8,0.03108306]
[1734344519491,2.54245,3933.2,3932.7,0.7901]
[1734344519791,2.54245,3933.2,3932.8,0.03108306]
[1734344520087,2.54252,3933.1,3932.7,0.7901]
[1734344520453,2.54252,3933.1,3932.8,0.03108306]
[1734344520790,2.54252,3933.1,3932.7,0.7901]
[1734344521000,2.54265,3932.9,3932.8,0.03108306]
[1734344521449,2.54307,3932.3,3931.6,0.7901]
[1734344521954,2.54292,3932.5,3931.7,0.03163671]
[1734344522550,2.54284,3932.6,3931.7,0.03163671]
[1734344522686,2.54284,3932.6,3931.8,0.33322073]
[1734344523055,2.54284,3932.6,3931.9,0.03159391]
[1734344523260,2.54293,3932.5,3931.9,0.03159391]
[1734344524106,2.54303,3932.4,3931.9,0.03159391]
[1734344524411,2.54303,3932.4,3931.6,2.96649391]
[1734344524590,2.54303,3932.4,3932.0,0.03157252]
[1734344524788,2.54303,3932.4,3931.6,3.29655097]
[1734344524967,2.54303,3932.4,3931.7,0.03163671]
[1734344526579,0.7515,3932.8,3931.7,0.03163671]
[1734344527607,2.54255,3933.1,3932.0,2.17639391]
[1734344527758,2.54255,3933.1,3932.2,0.7743]
[1734344528110,2.54281,3932.7,3932.3,0.03044135]
[1734344528418,2.54304,3932.3,3931.8,0.7743]
[1734344528577,0.7913,3932.6,3931.8,0.7743]
[1734344528981,2.54297,3932.4,3931.8,0.7743]
[1734344529314,2.54301,3932.4,3931.8,0.7743]
[1734344529666,0.333431,3932.4,3931.8,0.7743]
[1734344530111,2.54312,3932.2,3931.8,0.7743]
[1734344530426,2.54312,3932.2,3931.1,0.33407666]
[1734344530427,2.54304,3932.3,3931.2,0.7743]
[1734344530724,2.54336,3931.9,3931.2,0.7743]
[1734344530883,2.54304,3932.3,3931.3,0.0305898]
[1734344530884,2.5431,3932.2,3931.3,0.0305898]
[1734344531080,2.54332,3931.9,3931.2,0.7743]
[1734344531279,2.54332,3931.9,3931.3,0.0305898]
[1734344531531,2.54332,3931.9,3931.2,0.7743]
[1734344531837,2.54339,3931.8,3931.3,0.0305898]
[1734344532287,2.54343,3931.7,3931.3,0.0305898]
[1734344532623,2.54343,3931.7,3931.2,0.7743]
[1734344533000,2.5433,3931.9,3931.3,0.0305898]
[1734344533253,2.5433,3931.9,3931.2,0.7743]
[1734344533564,0.28309471,3931.9,3931.3,0.0305898]
[1734344533701,2.54362,3931.4,3931.3,0.0305898]
[1734344533907,0.7542,3931.9,3930.7,0.39680126]
[1734344533908,3.29752,3931.9,3930.7,0.39680126]
[1734344534153,2.54401,3930.8,3930.7,0.39680126]
[1734344534362,2.54401,3930.8,3930.7,0.42760002]
[1734344534499,2.54401,3930.8,3930.7,0.39680126]
[1734344534694,3.628031,3930.8,3930.7,0.39680126]
[1734344535191,6.09407,3930.7,3930.6,9.53e-06]
[1734344535408,0.7542,3930.0,3927.9,0.76374]
[1734344535637,3.29931,3929.1,3928.5,0.39719044]
[1734344535937,3.84688039,3929.1,3928.5,0.39719044]
[1734344536083,3.84688039,3929.1,3927.4,2.17639391]
[1734344536286,3.84688039,3929.1,3927.4,0.33407666]
[1734344536287,6.84688039,3929.1,3927.4,0.33407666]
[1734344536622,2.17639391,3929.0,3927.6,0.39732618]
[1734344536931,0.68468804,3929.0,3927.6,0.73140284]
[1734344537148,2.54566,3928.3,3927.6,0.39732618]
[1734344537290,2.54566,3928.3,3927.2,0.1630939]
[1734344537628,2.54531,3928.8,3927.4,3.33768422]
[1734344538099,2.54531,3928.8,3927.5,0.03059215]
[1734344538302,0.7936,3928.9,3927.5,0.03059215]
[1734344538303,2.54538,3928.7,3927.5,0.03059215]
[1734344538538,0.7936,3928.9,3927.6,0.8175]
[1734344538711,2.54522,3929.0,3927.7,0.03054085]
[1734344539324,3.35433,3929.3,3927.8,2.17639391]
[1734344539617,2.54505,3929.2,3927.9,1.70818043]
[1734344539909,0.8093,3929.3,3928.0,0.76374]
[1734344540111,0.8093,3929.3,3928.1,0.58046352]
[1734344540433,3.35431,3929.3,3928.1,0.58046352]
[1734344540633,3.689741,3929.3,3928.1,0.03046352]
[1734344541162,0.335431,3929.3,3928.3,1.3675]
[1734344541347,3.87141324,3930.2,3928.7,0.55]
[1734344541684,2.98569391,3930.2,3928.8,0.0303135]
[1734344541950,2.54463,3929.9,3928.8,0.0303135]
[1734344542111,2.54463,3929.9,3928.6,0.55]
[1734344542315,2.54463,3929.9,3928.7,0.03041562]
[1734344542549,0.254463,3929.8,3928.7,0.03041562]
[1734344542725,2.799153,3929.8,3928.7,0.03041562]
[1734344542909,2.799153,3929.8,3928.4,0.55]
[1734344543123,2.799153,3929.8,3928.5,0.03045849]
[1734344543521,0.254463,3929.8,3928.5,0.03045849]
[1734344543761,2.54472,3929.7,3928.5,0.03045849]
[1734344544417,2.17639391,3929.8,3928.5,0.03045849]
[1734344544621,2.54524,3928.9,3928.5,0.03045849]
[1734344544971,2.54524,3928.9,3927.9,0.789]
[1734344545190,2.54514,3929.1,3928.0,0.03253616]
[1734344545454,0.254514,3929.0,3928.0,0.03253616]
[1734344546015,0.8187,3929.7,3928.1,0.55]
[1734344546016,3.36348,3929.7,3928.1,0.55]
[1734344546255,2.54479,3929.6,3928.4,0.55]
[1734344546466,0.8187,3929.7,3928.4,0.55]
[1734344546648,0.8187,3929.7,3928.6,0.55]
[1734344546649,3.8187,3929.7,3928.6,0.55]
[1734344546848,2.54498,3929.3,3928.6,0.55]
[1734344547029,2.54529,3928.9,3928.3,0.789]
[1734344547231,2.5451,3929.2,3928.4,0.55]
[1734344547751,2.17639391,3929.4,3928.4,0.55]
[1734344547957,0.7814,3928.9,3927.7,0.8201]
[1734344548256,0.332656,3928.8,3928.5,0.03332717]
[1734344548460,0.332656,3928.8,3927.7,0.8201]
[1734344548817,0.332656,3928.8,3927.8,0.03347725]
[1734344549059,2.54546,3928.6,3927.8,0.03347725]
[1734344549216,0.2878116,3928.5,3927.8,0.03347725]
[1734344549417,0.2878116,3928.5,3927.9,0.55]
[1734344549822,0.2878116,3928.5,3928.1,0.55]
[1734344550162,2.8333116,3928.5,3928.3,0.55]
[1734344550351,0.2878116,3928.5,3928.3,0.55]
[1734344550552,0.332656,3928.8,3928.5,0.55]
[1734344550822,2.54544,3928.6,3928.5,0.55]
[1734344551367,0.332656,3928.8,3928.5,0.5]
[1734344551568,2.54534,3928.8,3928.5,0.5]
[1734344552061,0.7814,3929.3,3928.5,0.5]
[1734344552429,2.54543,3928.6,3928.5,0.5]
[1734344553164,0.7814,3929.3,3928.5,0.5]
[1734344553476,2.54543,3928.6,3928.5,0.5]
[1734344554469,3.31523,3928.6,3928.5,0.5]
[1734344555644,2.54543,3928.6,3928.5,0.5]
[1734344559764,3.36343,3928.6,3927.2,0.1630939]
[1734344560082,2.54616,3927.5,3927.2,0.1630939]
[1734344560342,0.818,3927.6,3927.2,0.1630939]
[1734344560343,2.54626,3927.4,3927.2,0.1630939]
[1734344560532,2.5461,3927.6,3927.2,0.1630939]
[1734344561215,2.5461,3927.6,3924.6,2.674]
[1734344561216,2.5466,3926.8,3925.6,0.27715999]
[1734344561541,3.0,3928.2,3925.2,0.9574963]
[1734344561542,2.54609,3927.6,3926.5,2.17639391]
[1734344561746,0.818,3928.1,3926.6,0.828]
[1734344562028,4.72187391,3928.6,3926.7,1.11151784]
[1734344562029,0.818,3928.6,3926.7,1.11151784]
[1734344562185,2.54586,3928.0,3926.7,0.828]
[1734344562581,2.54586,3928.0,3926.5,2.17639391]
[1734344562582,2.54586,3928.0,3926.8,0.55]
[1734344562784,2.54586,3928.0,3927.0,0.55]
[1734344562983,0.818,3928.6,3927.1,0.828]
[1734344563188,2.54563,3928.3,3927.2,0.55]
[1734344563413,2.54563,3928.3,3927.4,0.55]
[1734344563621,0.818,3929.0,3927.4,0.55]
[1734344563926,2.54556,3928.5,3927.4,0.55]
[1734344564168,2.54557,3928.4,3927.4,0.55]
[1734344564377,2.54571,3928.2,3927.4,0.7856092]
[1734344564520,2.54571,3928.2,3927.1,0.828]
[1734344564521,2.54571,3928.2,3927.2,0.55]
[1734344565144,3.0,3928.6,3927.2,0.55]
[1734344565356,2.54576,3928.1,3927.2,0.55]
[1734344565557,3.0,3928.7,3927.2,0.55]
[1734344565724,0.3124363,3928.6,3927.2,0.90543939]
[1734344565917,3.0,3928.7,3927.3,0.76387]
[1734344566225,2.54564,3928.3,3927.4,0.55]
[1734344566421,3.0,3928.9,3927.3,0.55]
[1734344566624,0.59577939,3929.2,3928.0,1.31374]
[1734344566625,3.14081939,3929.2,3928.0,1.31374]
[1734344566818,2.54477,3929.7,3928.1,1.53421]
[1734344567023,0.8266,3929.9,3928.1,1.53421]
[1734344567024,2.54496,3929.4,3928.2,1.3137]
[1734344567472,2.5448,3929.6,3928.4,0.55]
[1734344567805,2.54502,3929.3,3928.6,0.55]
[1734344568121,2.54482,3929.6,3928.6,0.55]
[1734344568324,0.8266,3929.9,3928.6,0.55]
[1734344568523,2.54504,3929.3,3928.6,0.55]
[1734344568973,0.337117,3929.8,3928.6,0.55]
[1734344569183,2.54472,3929.7,3928.6,0.55]
[1734344569329,2.17639391,3930.6,3928.6,0.55]
[1734344569330,2.54486,3929.5,3928.6,0.55]
[1734344569528,2.54492,3929.4,3928.6,0.55]
[1734344569769,2.54499,3929.3,3928.6,0.55]
[1734344570068,2.54505,3929.2,3928.6,0.55]
[1734344570480,2.54488,3929.5,3928.6,0.55]
[1734344570773,0.254488,3929.4,3928.6,0.55]
[1734344571079,0.89367494,3930.3,3928.6,0.55]
[1734344571260,2.54517,3929.0,3928.5,0.7573]
[1734344571456,0.7642,3929.4,3928.5,0.7573]
[1734344571658,2.54529,3928.9,3928.5,0.7573]
[1734344571862,2.799819,3928.9,3928.5,0.7573]
[1734344572173,2.5449,3929.5,3928.5,0.7573]
[1734344572480,2.545,3929.3,3928.5,0.7573]
[1734344572772,2.54508,3929.2,3928.5,0.7573]
[1734344573172,2.54508,3929.2,3928.6,0.55]
[1734344573328,2.54508,3929.2,3928.6,0.57915534]
[1734344574160,2.54485,3929.5,3928.6,0.57915534]
[1734344574335,0.554485,3929.4,3928.6,0.57915534]
[1734344575993,2.54512,3929.1,3928.6,0.57915534]
[1734344576776,0.554485,3929.4,3928.6,0.57915534]
[1734344576980,2.54496,3929.4,3928.6,0.57915534]
[1734344577992,3.30884,3929.9,3928.6,0.57915534]
[1734344577993,0.7642,3929.9,3928.6,0.57915534]
[1734344578201,3.0,3929.7,3928.6,0.57915534]
[1734344578407,2.5453,3928.8,3928.6,0.55]
[1734344578568,2.54497,3929.4,3928.7,0.02812276]
[1734344578766,2.54497,3929.4,3928.6,0.55]
[1734344578767,2.54517,3929.0,3928.6,0.55]
[1734344578968,0.35921454,3929.3,3928.6,0.55]
[1734344578969,0.35921454,3929.3,3928.7,0.02812276]
[1734344579178,2.5453,3928.8,3928.7,0.02812276]
[1734344579375,2.5453,3928.8,3927.5,2.17639391]
[1734344579376,2.5453,3928.8,3928.1,0.7882]
[1734344579589,2.54557,3928.4,3928.1,0.7882]
[1734344579785,2.54557,3928.4,3928.2,0.02827111]
[1734344580171,0.7879,3929.1,3928.2,0.02827111]
[1734344580374,2.54536,3928.8,3928.1,0.7882]
[1734344580623,2.54536,3928.8,3928.2,0.57827111]
[1734344581018,2.9226067,3929.0,3928.2,0.57827111]
[1734344581327,2.54518,3929.0,3928.2,0.57827111]
[1734344581493,1.40638991,3929.3,3928.4,0.8217]
[1734344581494,1.04717537,3929.3,3928.4,0.8217]
[1734344581835,1.04717537,3929.7,3928.9,0.55]
[1734344581983,2.54477,3929.7,3928.9,0.55]
[1734344582182,1.04717537,3929.9,3928.9,0.55]
[1734344582490,2.54472,3929.7,3929.1,0.55]
[1734344583082,2.54472,3929.7,3929.2,0.02829763]
[1734344583399,1.04717537,3929.8,3929.1,0.55]
[1734344583611,1.1310888,3929.7,3929.3,0.02827621]
[1734344583831,1.1310888,3929.7,3929.1,0.55]
[1734344583832,2.5448,3929.6,3929.1,0.55]
[1734344583986,2.5448,3929.6,3929.4,0.02825478]
[1734344584189,2.5448,3929.6,3929.1,0.55]
[1734344584497,2.5448,3929.6,3929.5,0.02823336]
[1734344584739,2.5448,3929.6,3929.1,0.55]
[1734344584740,3.59180537,3929.9,3929.1,0.55]
[1734344585035,2.54497,3929.4,3929.1,0.55]
[1734344585729,1.56435361,3929.8,3929.1,0.55]
[1734344585930,2.17114943,3929.7,3929.1,0.55]
[1734344586133,2.17114943,3929.7,3927.8,0.8275]
[1734344586134,2.54546,3928.6,3927.8,0.8275]
[1734344586500,2.54546,3928.6,3927.9,0.02857625]
[1734344586942,3.59232537,3929.1,3927.9,0.02857625]
[1734344587137,2.5454,3928.7,3927.9,0.02857625]
[1734344587303,2.5454,3928.7,3927.9,0.55]
[1734344587505,2.54546,3928.6,3927.9,0.55]
[1734344587847,2.54546,3928.6,3928.0,0.02830776]
[1734344588015,2.5453,3928.9,3928.0,0.02830776]
[1734344588217,2.54538,3928.7,3928.0,0.02830776]
[1734344589156,0.59436024,3929.0,3928.0,0.02830776]
[1734344589366,2.54537,3928.7,3928.0,0.02830776]
[1734344589717,1.04717537,3929.1,3928.0,0.02830776]
[1734344589718,2.54548,3928.6,3928.0,0.02830776]
[1734344590119,2.5453,3928.9,3928.2,0.55]
[1734344590396,0.35924754,3928.9,3928.2,0.55]
[1734344590561,1.04717537,3929.4,3928.3,0.02825554]
[1734344590764,1.04717537,3929.4,3928.4,0.7638]
[1734344590765,3.59210537,3929.4,3928.4,0.7638]
[1734344591063,3.59210537,3929.4,3928.8,0.55]
[1734344591064,2.54493,3929.4,3928.8,0.55]
[1734344591438,2.54493,3929.4,3928.9,0.02812695]
[1734344592964,1.56435361,3929.8,3928.9,0.02812695]
[1734344593264,2.54486,3929.5,3928.8,0.55]
[1734344593565,2.54477,3929.7,3928.8,0.55]
[1734344593719,2.54477,3929.7,3928.9,0.0279269]
[1734344593921,2.54459,3929.9,3929.0,0.55]
[1734344594167,2.54459,3929.9,3929.2,0.55]
[1734344594526,2.54447,3930.1,3929.3,0.02785663]
[1734344594726,2.5446,3929.9,3929.3,0.02785663]
[1734344594965,0.77159124,3930.1,3929.3,0.02785663]
[1734344595166,2.54467,3929.8,3929.3,0.02785663]
[1734344595552,2.54467,3929.8,3929.2,0.55]
[1734344595755,0.77159124,3930.1,3929.4,0.0278352]
[1734344595958,2.54491,3929.4,3929.3,0.02785663]
[1734344596161,2.54525,3928.9,3928.1,0.7836]
[1734344596482,1.04717537,3929.7,3928.2,0.02689532]
[1734344596646,2.54534,3928.8,3928.1,0.7836]
[1734344596843,2.54534,3928.8,3928.3,0.0268823]
[1734344597153,2.54534,3928.8,3928.2,0.02691216]
[1734344597326,2.54534,3928.8,3928.1,0.7836]
[1734344597775,2.54537,3928.7,3928.2,0.55]
[1734344598123,2.54537,3928.7,3928.3,0.02689073]
[1734344598524,2.54513,3929.1,3928.2,0.55]
[1734344598757,2.54513,3929.1,3928.3,0.7836]
[1734344598974,2.54513,3929.1,3928.4,0.55]